[Event "Titled Tuesday Blitz April 11 Late 2023"]
[White "Vifleemskaia, Svetlana"]
[Black "Dobrikov, Marco"]
[WhiteFideId "4129490"]
[BlackFideId "12950378"]
[WhiteElo "1930"]
[BlackElo "2296"]
[Result "0-1"]
[Round "04"]
[TimeControl "180+2"]
[Date "2023.04.11"]
[WhiteClock "0:00:06"]
[BlackClock "0:00:55"]

1. d4 {[%clk 0:03:00]}  b5 {[%clk 0:02:59]} 2. e4 {[%clk 0:02:59]}  Bb7 {[%clk 0:02:58]} 3. Bxb5 {[%clk 0:02:54]}  Bxe4 {[%clk 0:02:58]} 4. Nf3 {[%clk 0:02:54]}  Nf6 {[%clk 0:02:58]} 5. Nc3 {[%clk 0:02:54]}  Bb7 {[%clk 0:02:57]} 6. O-O {[%clk 0:02:53]}  e6 {[%clk 0:02:57]} 7. Bg5 {[%clk 0:02:52]}  Be7 {[%clk 0:02:57]} 8. Re1 {[%clk 0:02:50]}  O-O {[%clk 0:02:57]} 9. a4 {[%clk 0:02:50]}  a6 {[%clk 0:02:52]} 10. Bd3 {[%clk 0:02:45]}  Nc6 {[%clk 0:02:51]} 11. Ne4 {[%clk 0:02:41]}  h6 {[%clk 0:02:48]} 12. Bxf6 {[%clk 0:02:38]}  Bxf6 {[%clk 0:02:49]} 13. Nxf6+ {[%clk 0:02:38]}  Qxf6 {[%clk 0:02:49]} 14. c3 {[%clk 0:02:38]}  a5 {[%clk 0:02:46]} 15. Be4 {[%clk 0:02:35]}  Rab8 {[%clk 0:02:45]} 16. Qc2 {[%clk 0:02:26]}  Ne7 {[%clk 0:02:41]} 17. Ne5 {[%clk 0:02:19]}  Rfd8 {[%clk 0:02:38]} 18. Re2 {[%clk 0:02:13]}  d6 {[%clk 0:02:37]} 19. Bxb7 {[%clk 0:02:00]}  Rxb7 {[%clk 0:02:37]} 20. Nc4 {[%clk 0:01:58]}  Ra8 {[%clk 0:02:37]} 21. Qd3 {[%clk 0:01:48]}  Nd5 {[%clk 0:02:35]} 22. g3 {[%clk 0:01:45]}  h5 {[%clk 0:02:32]} 23. h4 {[%clk 0:01:42]}  g6 {[%clk 0:02:32]} 24. Kg2 {[%clk 0:01:42]}  Kg7 {[%clk 0:02:30]} 25. Qf3 {[%clk 0:01:41]}  Qe7 {[%clk 0:02:26]} 26. Ne3 {[%clk 0:01:39]}  Nxe3+ {[%clk 0:02:23]} 27. Qxe3 {[%clk 0:01:36]}  Rab8 {[%clk 0:02:23]} 28. Ra2 {[%clk 0:01:32]}  Qd7 {[%clk 0:02:23]} 29. Qe4 {[%clk 0:01:29]}  d5 {[%clk 0:02:20]} 30. Qe5+ {[%clk 0:01:26]}  Kg8 {[%clk 0:02:20]} 31. Qf6 {[%clk 0:01:24]}  Qc6 {[%clk 0:02:17]} 32. Re3 {[%clk 0:00:53]}  Rxb2 {[%clk 0:02:13]} 33. Rxb2 {[%clk 0:00:53]}  Rxb2 {[%clk 0:02:14]} 34. Rf3 {[%clk 0:00:53]}  Qe8 {[%clk 0:02:14]} 35. Qe5 {[%clk 0:00:49]}  Qe7 {[%clk 0:02:12]} 36. Rf6 {[%clk 0:00:35]}  Ra2 {[%clk 0:02:08]} 37. g4 {[%clk 0:00:34]}  Qd6 {[%clk 0:01:07]} 38. Qg5 {[%clk 0:00:31]}  hxg4 {[%clk 0:00:57]} 39. h5 {[%clk 0:00:29]}  g3 {[%clk 0:00:58]} 40. hxg6 {[%clk 0:00:21]}  Rxf2+ {[%clk 0:00:57]} 41. Rxf2 {[%clk 0:00:20]}  gxf2 {[%clk 0:00:58]} 42. Qh6 {[%clk 0:00:12]}  fxg6 {[%clk 0:00:55]} 43. Qxg6+ {[%clk 0:00:11]}  Kf8 {[%clk 0:00:56]} 44. Qf6+ {[%clk 0:00:09]}  Ke8 {[%clk 0:00:56]} 45. Qh8+ {[%clk 0:00:06]}  Qf8 {[%clk 0:00:55]} 0-1


[Site "https://www.chess.com"]

[Event "Titled Tuesday Blitz April 11 Late 2023"]
[White "Lorenzo De La Riva, Lazaro"]
[Black "Thomas, Anysia"]
[WhiteFideId "2268809"]
[BlackFideId "670472"]
[WhiteElo "2294"]
[BlackElo "2091"]
[Result "1-0"]
[Round "04"]
[TimeControl "180+2"]
[Date "2023.04.11"]
[WhiteClock "0:00:22"]
[BlackClock "0:00:05"]

1. f4 {[%clk 0:02:55]}  g6 {[%clk 0:02:56]} 2. e4 {[%clk 0:02:54]}  c5 {[%clk 0:02:55]} 3. Nf3 {[%clk 0:02:54]}  Bg7 {[%clk 0:02:55]} 4. Be2 {[%clk 0:02:44]}  Nc6 {[%clk 0:02:55]} 5. O-O {[%clk 0:02:43]}  d5 {[%clk 0:02:55]} 6. d3 {[%clk 0:02:40]}  Nf6 {[%clk 0:02:44]} 7. e5 {[%clk 0:02:38]}  Nd7 {[%clk 0:02:44]} 8. c3 {[%clk 0:02:37]}  e6 {[%clk 0:02:44]} 9. d4 {[%clk 0:02:31]}  h5 {[%clk 0:02:43]} 10. Na3 {[%clk 0:02:28]}  Bf8 {[%clk 0:02:29]} 11. Nc2 {[%clk 0:02:25]}  Be7 {[%clk 0:02:29]} 12. Be3 {[%clk 0:02:24]}  b6 {[%clk 0:02:28]} 13. a3 {[%clk 0:02:22]}  Bb7 {[%clk 0:02:29]} 14. b4 {[%clk 0:02:21]}  c4 {[%clk 0:02:27]} 15. a4 {[%clk 0:02:19]}  f6 {[%clk 0:02:22]} 16. exf6 {[%clk 0:02:16]}  Nxf6 {[%clk 0:02:21]} 17. Ng5 {[%clk 0:02:15]}  Qd7 {[%clk 0:02:19]} 18. Ne1 {[%clk 0:02:10]}  O-O {[%clk 0:02:19]} 19. h3 {[%clk 0:02:08]}  Nh7 {[%clk 0:02:18]} 20. Ngf3 {[%clk 0:02:05]}  Bd6 {[%clk 0:02:11]} 21. Qd2 {[%clk 0:02:03]}  Ne7 {[%clk 0:02:10]} 22. Ne5 {[%clk 0:02:00]}  Bxe5 {[%clk 0:02:08]} 23. fxe5 {[%clk 0:02:00]}  Nf5 {[%clk 0:02:08]} 24. Bf4 {[%clk 0:01:57]}  Rf7 {[%clk 0:02:05]} 25. g4 {[%clk 0:01:52]}  Ng7 {[%clk 0:01:59]} 26. a5 {[%clk 0:01:45]}  b5 {[%clk 0:01:57]} 27. a6 {[%clk 0:01:42]}  Bc6 {[%clk 0:01:56]} 28. Ng2 {[%clk 0:01:42]}  Raf8 {[%clk 0:01:55]} 29. Bh6 {[%clk 0:01:35]}  hxg4 {[%clk 0:01:46]} 30. hxg4 {[%clk 0:01:32]}  Rxf1+ {[%clk 0:01:43]} 31. Bxf1 {[%clk 0:01:28]}  Qf7 {[%clk 0:01:42]} 32. Nf4 {[%clk 0:00:50]}  g5 {[%clk 0:01:24]} 33. Bxg7 {[%clk 0:00:50]}  Qxf4 {[%clk 0:01:07]} 34. Qxf4 {[%clk 0:00:44]}  Rxf4 {[%clk 0:00:59]} 35. Bf6 {[%clk 0:00:42]}  Rxg4+ {[%clk 0:00:51]} 36. Bg2 {[%clk 0:00:42]}  Nxf6 {[%clk 0:00:50]} 37. exf6 {[%clk 0:00:43]}  Kf7 {[%clk 0:00:43]} 38. Kf2 {[%clk 0:00:38]}  Rf4+ {[%clk 0:00:42]} 39. Kg3 {[%clk 0:00:32]}  Kxf6 {[%clk 0:00:40]} 40. Rh1 {[%clk 0:00:33]}  Rh4 {[%clk 0:00:23]} 41. Rf1+ {[%clk 0:00:33]}  Ke7 {[%clk 0:00:18]} 42. Re1 {[%clk 0:00:30]}  Kd6 {[%clk 0:00:15]} 43. Re5 {[%clk 0:00:30]}  Rh5 {[%clk 0:00:09]} 44. Bf3 {[%clk 0:00:29]}  Rh8 {[%clk 0:00:07]} 45. Rxg5 {[%clk 0:00:28]}  Bd7 {[%clk 0:00:07]} 46. Rg7 {[%clk 0:00:27]}  Re8 {[%clk 0:00:06]} 47. Bg4 {[%clk 0:00:27]}  Re7 {[%clk 0:00:06]} 48. Rg8 {[%clk 0:00:27]}  Re8 {[%clk 0:00:05]} 49. Rg5 {[%clk 0:00:25]}  Bc8 {[%clk 0:00:05]} 50. Rg7 {[%clk 0:00:22]} 1-0


[Site "https://www.chess.com"]

[Event "Titled Tuesday Blitz April 11 Late 2023"]
[White "Torres Dominguez, David"]
[Black "Petre, Nad-Titus"]
[WhiteFideId "2220857"]
[BlackFideId "1204165"]
[WhiteElo "1999"]
[BlackElo "2354"]
[Result "1/2-1/2"]
[Round "04"]
[TimeControl "180+2"]
[Date "2023.04.11"]
[WhiteClock "0:00:50"]
[BlackClock "0:00:39"]

1. e4 {[%clk 0:03:00]}  d6 {[%clk 0:03:00]} 2. Nc3 {[%clk 0:02:59]}  c5 {[%clk 0:02:59]} 3. f4 {[%clk 0:02:59]}  Nc6 {[%clk 0:02:58]} 4. Nf3 {[%clk 0:02:59]}  g6 {[%clk 0:02:58]} 5. Bb5 {[%clk 0:02:59]}  Bd7 {[%clk 0:02:59]} 6. Bxc6 {[%clk 0:02:58]}  Bxc6 {[%clk 0:02:58]} 7. O-O {[%clk 0:02:59]}  Bg7 {[%clk 0:02:58]} 8. d3 {[%clk 0:02:59]}  Nf6 {[%clk 0:02:53]} 9. a4 {[%clk 0:03:00]}  O-O {[%clk 0:02:52]} 10. Qe1 {[%clk 0:03:00]}  e6 {[%clk 0:02:50]} 11. f5 {[%clk 0:02:44]}  exf5 {[%clk 0:02:47]} 12. Qh4 {[%clk 0:02:35]}  Ng4 {[%clk 0:02:37]} 13. Qxd8 {[%clk 0:02:30]}  Raxd8 {[%clk 0:02:33]} 14. exf5 {[%clk 0:02:30]}  Rfe8 {[%clk 0:02:27]} 15. fxg6 {[%clk 0:02:26]}  hxg6 {[%clk 0:02:22]} 16. Bd2 {[%clk 0:02:20]}  d5 {[%clk 0:02:08]} 17. h3 {[%clk 0:02:15]}  Ne3 {[%clk 0:02:06]} 18. Bxe3 {[%clk 0:02:10]}  Rxe3 {[%clk 0:02:07]} 19. Rae1 {[%clk 0:02:08]}  Rde8 {[%clk 0:02:05]} 20. Rxe3 {[%clk 0:02:07]}  Rxe3 {[%clk 0:02:06]} 21. Re1 {[%clk 0:02:00]}  Rxe1+ {[%clk 0:02:03]} 22. Nxe1 {[%clk 0:02:01]}  f5 {[%clk 0:02:02]} 23. a5 {[%clk 0:01:41]}  Be5 {[%clk 0:01:53]} 24. Nf3 {[%clk 0:01:35]}  Bc7 {[%clk 0:01:53]} 25. Ne2 {[%clk 0:01:24]}  Bxa5 {[%clk 0:01:50]} 26. Ne5 {[%clk 0:01:23]}  Be8 {[%clk 0:01:47]} 27. Nf4 {[%clk 0:01:21]}  Bc7 {[%clk 0:01:36]} 28. Nexg6 {[%clk 0:01:13]}  Kg7 {[%clk 0:01:37]} 29. Ne6+ {[%clk 0:01:13]}  Kxg6 {[%clk 0:01:36]} 30. Nxc7 {[%clk 0:01:14]}  Bc6 {[%clk 0:01:33]} 31. Ne6 {[%clk 0:01:10]}  b6 {[%clk 0:01:28]} 32. g3 {[%clk 0:01:09]}  a5 {[%clk 0:01:26]} 33. Kf2 {[%clk 0:01:07]}  a4 {[%clk 0:01:27]} 34. c3 {[%clk 0:01:00]}  Kf6 {[%clk 0:01:26]} 35. Nf4 {[%clk 0:00:59]}  b5 {[%clk 0:01:25]} 36. Ke3 {[%clk 0:00:56]}  b4 {[%clk 0:01:20]} 37. cxb4 {[%clk 0:00:56]}  d4+ {[%clk 0:01:21]} 38. Kd2 {[%clk 0:00:51]}  cxb4 {[%clk 0:01:21]} 39. h4 {[%clk 0:00:48]}  a3 {[%clk 0:01:00]} 40. bxa3 {[%clk 0:00:48]}  bxa3 {[%clk 0:01:01]} 41. Kc2 {[%clk 0:00:48]}  Ba4+ {[%clk 0:01:01]} 42. Kb1 {[%clk 0:00:47]}  Bb3 {[%clk 0:01:01]} 43. h5 {[%clk 0:00:45]}  Kg5 {[%clk 0:01:00]} 44. Ne2 {[%clk 0:00:41]}  Bd1 {[%clk 0:00:38]} 45. Nxd4 {[%clk 0:00:40]}  Bxh5 {[%clk 0:00:38]} 46. Ka2 {[%clk 0:00:39]}  Kg4 {[%clk 0:00:36]} 47. Nxf5 {[%clk 0:00:40]}  Kxf5 {[%clk 0:00:30]} 48. Kxa3 {[%clk 0:00:40]}  Ke5 {[%clk 0:00:30]} 49. Kb3 {[%clk 0:00:41]}  Kd4 {[%clk 0:00:31]} 50. Kc2 {[%clk 0:00:41]}  Bg6 {[%clk 0:00:31]} 51. Kd2 {[%clk 0:00:41]}  Bxd3 {[%clk 0:00:32]} 52. g4 {[%clk 0:00:42]}  Bg6 {[%clk 0:00:32]} 53. g5 {[%clk 0:00:43]}  Ke5 {[%clk 0:00:32]} 54. Ke2 {[%clk 0:00:43]}  Ke6 {[%clk 0:00:33]} 55. Kf2 {[%clk 0:00:44]}  Kd6 {[%clk 0:00:34]} 56. Kg3 {[%clk 0:00:45]}  Ke6 {[%clk 0:00:35]} 57. Kf4 {[%clk 0:00:46]}  Kf7 {[%clk 0:00:36]} 58. Kg4 {[%clk 0:00:46]}  Kg7 {[%clk 0:00:36]} 59. Kf4 {[%clk 0:00:47]}  Kf7 {[%clk 0:00:37]} 60. Kg4 {[%clk 0:00:48]}  Ke6 {[%clk 0:00:38]} 61. Kf4 {[%clk 0:00:49]}  Kd5 {[%clk 0:00:38]} 62. Kg4 {[%clk 0:00:50]}  Ke5 {[%clk 0:00:39]} 63. Kh4 {[%clk 0:00:50]}  Kf5 {[%clk 0:00:38]} 64. Kg3 {[%clk 0:00:50]}  Kxg5 {[%clk 0:00:39]} 1/2-1/2


[Site "https://www.chess.com"]

[Event "Titled Tuesday Blitz April 11 Late 2023"]
[White "Guzman Moneo, Alberto"]
[Black "Jaracz, Pawel"]
[WhiteFideId "2209616"]
[BlackFideId "1102222"]
[WhiteElo "2157"]
[BlackElo "2438"]
[Result "1-0"]
[Round "04"]
[TimeControl "180+2"]
[Date "2023.04.11"]
[WhiteClock "0:00:08"]
[BlackClock "0:00:06"]

1. e4 {[%clk 0:02:56]}  c5 {[%clk 0:02:55]} 2. Nc3 {[%clk 0:02:54]}  Nc6 {[%clk 0:02:54]} 3. Bb5 {[%clk 0:02:54]}  Nd4 {[%clk 0:02:54]} 4. Nge2 {[%clk 0:02:53]}  e6 {[%clk 0:02:54]} 5. O-O {[%clk 0:02:53]}  a6 {[%clk 0:02:55]} 6. Bd3 {[%clk 0:02:53]}  Nc6 {[%clk 0:02:55]} 7. b3 {[%clk 0:02:49]}  Nf6 {[%clk 0:02:55]} 8. Bb2 {[%clk 0:02:49]}  d6 {[%clk 0:02:55]} 9. Nf4 {[%clk 0:02:46]}  Be7 {[%clk 0:02:55]} 10. Be2 {[%clk 0:02:44]}  b5 {[%clk 0:02:54]} 11. d3 {[%clk 0:02:44]}  Bb7 {[%clk 0:02:55]} 12. Nh5 {[%clk 0:02:44]}  Nxh5 {[%clk 0:02:53]} 13. Bxh5 {[%clk 0:02:44]}  Bf6 {[%clk 0:02:54]} 14. Rb1 {[%clk 0:02:37]}  O-O {[%clk 0:02:50]} 15. a4 {[%clk 0:02:33]}  Nd4 {[%clk 0:02:45]} 16. Ne2 {[%clk 0:02:27]}  bxa4 {[%clk 0:02:39]} 17. Nxd4 {[%clk 0:02:25]}  cxd4 {[%clk 0:02:37]} 18. bxa4 {[%clk 0:02:24]}  Bc6 {[%clk 0:02:37]} 19. Ra1 {[%clk 0:02:18]}  d5 {[%clk 0:02:25]} 20. Ba3 {[%clk 0:02:12]}  Re8 {[%clk 0:02:24]} 21. Bf3 {[%clk 0:02:12]}  dxe4 {[%clk 0:02:24]} 22. Bxe4 {[%clk 0:02:11]}  Bxe4 {[%clk 0:02:24]} 23. dxe4 {[%clk 0:02:11]}  Rc8 {[%clk 0:02:24]} 24. Qd3 {[%clk 0:02:05]}  Qa5 {[%clk 0:02:21]} 25. Bb2 {[%clk 0:02:01]}  Red8 {[%clk 0:02:16]} 26. f4 {[%clk 0:01:49]}  e5 {[%clk 0:02:14]} 27. fxe5 {[%clk 0:01:46]}  Bxe5 {[%clk 0:02:14]} 28. Rf5 {[%clk 0:01:46]}  g6 {[%clk 0:02:11]} 29. Rf3 {[%clk 0:01:39]}  Qc5 {[%clk 0:02:09]} 30. Ba3 {[%clk 0:01:24]}  Qxc2 {[%clk 0:02:06]} 31. Qxa6 {[%clk 0:01:23]}  d3 {[%clk 0:01:39]} 32. Raf1 {[%clk 0:01:23]}  Rc7 {[%clk 0:01:18]} 33. Qa5 {[%clk 0:01:10]}  Bd4+ {[%clk 0:01:13]} 34. Kh1 {[%clk 0:01:09]}  d2 {[%clk 0:01:12]} 35. Qg5 {[%clk 0:00:15]}  Re8 {[%clk 0:00:47]} 36. Qb5 {[%clk 0:00:10]}  Rec8 {[%clk 0:00:31]} 37. Bd6 {[%clk 0:00:10]}  d1=Q {[%clk 0:00:29]} 38. Bxc7 {[%clk 0:00:10]}  Qxf1+ {[%clk 0:00:17]} 39. Rxf1 {[%clk 0:00:11]}  Qxc7 {[%clk 0:00:17]} 40. Qd5 {[%clk 0:00:11]}  Be5 {[%clk 0:00:17]} 41. h3 {[%clk 0:00:10]}  Rd8 {[%clk 0:00:17]} 42. Qa2 {[%clk 0:00:09]}  Kg7 {[%clk 0:00:15]} 43. a5 {[%clk 0:00:10]}  Ra8 {[%clk 0:00:15]} 44. a6 {[%clk 0:00:10]}  Qb6 {[%clk 0:00:15]} 45. Qd5 {[%clk 0:00:10]}  Re8 {[%clk 0:00:12]} 46. Qxf7+ {[%clk 0:00:08]}  Kh6 {[%clk 0:00:11]} 47. Qxe8 {[%clk 0:00:09]}  Bc7 {[%clk 0:00:11]} 48. Qf8+ {[%clk 0:00:09]}  Kh5 {[%clk 0:00:10]} 49. Qf3+ {[%clk 0:00:09]}  Kh6 {[%clk 0:00:11]} 50. Qf8+ {[%clk 0:00:09]}  Kh5 {[%clk 0:00:11]} 51. a7 {[%clk 0:00:10]}  Qxa7 {[%clk 0:00:10]} 52. g4+ {[%clk 0:00:09]}  Kh4 {[%clk 0:00:10]} 53. Qf2+ {[%clk 0:00:09]}  Qxf2 {[%clk 0:00:10]} 54. Rxf2 {[%clk 0:00:10]}  Kxh3 {[%clk 0:00:10]} 55. Rf7 {[%clk 0:00:10]}  Be5 {[%clk 0:00:10]} 56. Rxh7+ {[%clk 0:00:09]}  Kxg4 {[%clk 0:00:10]} 57. Rf7 {[%clk 0:00:10]}  g5 {[%clk 0:00:08]} 58. Kg2 {[%clk 0:00:11]}  Bf4 {[%clk 0:00:09]} 59. Kf2 {[%clk 0:00:09]}  Bc1 {[%clk 0:00:08]} 60. Ke2 {[%clk 0:00:09]}  Kg3 {[%clk 0:00:07]} 61. e5 {[%clk 0:00:08]}  g4 {[%clk 0:00:06]} 62. e6 {[%clk 0:00:08]} 1-0


[Site "https://www.chess.com"]

[Event "Titled Tuesday Blitz April 11 Late 2023"]
[White "Domingo Nunez, Ruben"]
[Black "Gerbelli Neto, Eduardo"]
[WhiteFideId "22245570"]
[BlackFideId "2103281"]
[WhiteElo "2404"]
[BlackElo "2178"]
[Result "1-0"]
[Round "04"]
[TimeControl "180+2"]
[Date "2023.04.11"]
[WhiteClock "0:01:05"]
[BlackClock "0:00:20"]

1. b3 {[%clk 0:03:00]}  Nf6 {[%clk 0:02:58]} 2. Bb2 {[%clk 0:03:01]}  d5 {[%clk 0:02:58]} 3. Nf3 {[%clk 0:03:01]}  e6 {[%clk 0:02:59]} 4. e3 {[%clk 0:03:02]}  Be7 {[%clk 0:02:57]} 5. Be2 {[%clk 0:03:03]}  O-O {[%clk 0:02:57]} 6. O-O {[%clk 0:03:04]}  c5 {[%clk 0:02:58]} 7. d4 {[%clk 0:03:04]}  Nc6 {[%clk 0:02:58]} 8. c4 {[%clk 0:03:05]}  b6 {[%clk 0:02:58]} 9. cxd5 {[%clk 0:03:05]}  exd5 {[%clk 0:02:56]} 10. dxc5 {[%clk 0:03:05]}  bxc5 {[%clk 0:02:57]} 11. Nc3 {[%clk 0:03:06]}  Be6 {[%clk 0:02:57]} 12. Rc1 {[%clk 0:03:06]}  Rc8 {[%clk 0:02:53]} 13. Na4 {[%clk 0:03:05]}  Nd7 {[%clk 0:02:47]} 14. Ba3 {[%clk 0:02:38]}  Nb4 {[%clk 0:02:44]} 15. Qd2 {[%clk 0:02:35]}  Nb6 {[%clk 0:02:33]} 16. Nxc5 {[%clk 0:02:29]}  Bxc5 {[%clk 0:02:28]} 17. Bxb4 {[%clk 0:02:29]}  Qe7 {[%clk 0:02:24]} 18. Rxc5 {[%clk 0:02:28]}  Rxc5 {[%clk 0:02:25]} 19. Ne5 {[%clk 0:02:21]}  Qc7 {[%clk 0:02:21]} 20. Bxc5 {[%clk 0:02:12]}  Qxc5 {[%clk 0:02:22]} 21. Rc1 {[%clk 0:02:12]}  Qd6 {[%clk 0:02:15]} 22. Qd4 {[%clk 0:02:11]}  Rd8 {[%clk 0:02:09]} 23. h4 {[%clk 0:02:08]}  Qa3 {[%clk 0:02:08]} 24. Rc2 {[%clk 0:02:07]}  h6 {[%clk 0:02:00]} 25. Bd3 {[%clk 0:02:02]}  Qd6 {[%clk 0:01:37]} 26. Nc6 {[%clk 0:01:58]}  Rc8 {[%clk 0:01:30]} 27. Nxa7 {[%clk 0:01:57]}  Rxc2 {[%clk 0:01:28]} 28. Bxc2 {[%clk 0:01:58]}  Qc7 {[%clk 0:01:23]} 29. Nb5 {[%clk 0:01:54]}  Qxc2 {[%clk 0:01:19]} 30. Qxb6 {[%clk 0:01:54]}  Qxa2 {[%clk 0:01:15]} 31. Nd4 {[%clk 0:01:54]}  Qb1+ {[%clk 0:01:10]} 32. Kh2 {[%clk 0:01:53]}  Qe4 {[%clk 0:01:06]} 33. Qb8+ {[%clk 0:01:42]}  Kh7 {[%clk 0:01:05]} 34. Qf4 {[%clk 0:01:43]}  Qd3 {[%clk 0:00:46]} 35. b4 {[%clk 0:01:40]}  Kg8 {[%clk 0:00:33]} 36. b5 {[%clk 0:01:39]}  Qb1 {[%clk 0:00:31]} 37. Qb8+ {[%clk 0:01:38]}  Kh7 {[%clk 0:00:31]} 38. b6 {[%clk 0:01:39]}  Qe4 {[%clk 0:00:27]} 39. Qf4 {[%clk 0:01:24]}  Qb1 {[%clk 0:00:27]} 40. Qc7 {[%clk 0:01:22]}  Qe4 {[%clk 0:00:25]} 41. b7 {[%clk 0:01:04]}  Qxh4+ {[%clk 0:00:24]} 42. Kg1 {[%clk 0:01:05]}  Qh5 {[%clk 0:00:20]} 43. Qc2+ {[%clk 0:01:05]} 1-0


[Site "https://www.chess.com"]

[Event "Titled Tuesday Blitz April 11 Late 2023"]
[White "Ismagilov, Damir"]
[Black "Mordechai, Hanan"]
[WhiteFideId "34199982"]
[BlackFideId "2804166"]
[WhiteElo "2078"]
[BlackElo "2324"]
[Result "1-0"]
[Round "04"]
[TimeControl "180+2"]
[Date "2023.04.11"]
[WhiteClock "0:00:29"]
[BlackClock "0:00:05"]

1. d4 {[%clk 0:02:53]}  Nf6 {[%clk 0:02:58]} 2. Bf4 {[%clk 0:02:53]}  c5 {[%clk 0:02:57]} 3. e3 {[%clk 0:02:53]}  Qb6 {[%clk 0:02:56]} 4. Nc3 {[%clk 0:02:52]}  cxd4 {[%clk 0:02:26]} 5. exd4 {[%clk 0:02:48]}  g6 {[%clk 0:02:26]} 6. Nf3 {[%clk 0:02:47]}  Bg7 {[%clk 0:02:26]} 7. Rb1 {[%clk 0:02:44]}  O-O {[%clk 0:02:25]} 8. Be2 {[%clk 0:02:43]}  d5 {[%clk 0:02:25]} 9. O-O {[%clk 0:02:42]}  Nc6 {[%clk 0:02:25]} 10. Na4 {[%clk 0:02:38]}  Qd8 {[%clk 0:02:15]} 11. c3 {[%clk 0:02:35]}  Nh5 {[%clk 0:02:15]} 12. Bg5 {[%clk 0:02:29]}  h6 {[%clk 0:02:15]} 13. Bh4 {[%clk 0:02:28]}  g5 {[%clk 0:02:07]} 14. Bg3 {[%clk 0:02:22]}  Nxg3 {[%clk 0:02:05]} 15. hxg3 {[%clk 0:02:23]}  Bf5 {[%clk 0:02:04]} 16. Nc5 {[%clk 0:02:17]}  Bxb1 {[%clk 0:02:02]} 17. Qxb1 {[%clk 0:02:17]}  b6 {[%clk 0:02:02]} 18. Nd3 {[%clk 0:02:13]}  Qd6 {[%clk 0:01:59]} 19. Re1 {[%clk 0:02:07]}  a5 {[%clk 0:01:54]} 20. Qd1 {[%clk 0:02:02]}  b5 {[%clk 0:01:51]} 21. Nde5 {[%clk 0:02:02]}  Rab8 {[%clk 0:01:44]} 22. Bd3 {[%clk 0:02:01]}  b4 {[%clk 0:01:42]} 23. Bc2 {[%clk 0:02:00]}  Nxe5 {[%clk 0:01:24]} 24. dxe5 {[%clk 0:01:58]}  Qc5 {[%clk 0:01:15]} 25. Qd3 {[%clk 0:01:54]}  Rfc8 {[%clk 0:01:07]} 26. Qh7+ {[%clk 0:01:54]}  Kf8 {[%clk 0:01:08]} 27. Nd4 {[%clk 0:01:50]}  e6 {[%clk 0:01:05]} 28. Nb3 {[%clk 0:01:39]}  Qc7 {[%clk 0:01:02]} 29. Re3 {[%clk 0:01:35]}  bxc3 {[%clk 0:01:00]} 30. bxc3 {[%clk 0:01:35]}  Rb6 {[%clk 0:00:50]} 31. Nd4 {[%clk 0:01:29]}  Qc4 {[%clk 0:00:44]} 32. Rf3 {[%clk 0:01:23]}  Rc7 {[%clk 0:00:37]} 33. Bg6 {[%clk 0:01:06]}  Qxa2 {[%clk 0:00:29]} 34. Rf6 {[%clk 0:01:05]}  Qa1+ {[%clk 0:00:20]} 35. Kh2 {[%clk 0:01:05]}  Qxc3 {[%clk 0:00:21]} 36. Bxf7 {[%clk 0:00:46]}  Rxf7 {[%clk 0:00:22]} 37. Nxe6+ {[%clk 0:00:42]}  Rxe6 {[%clk 0:00:09]} 38. Rxe6 {[%clk 0:00:43]}  Qc8 {[%clk 0:00:06]} 39. Qg6 {[%clk 0:00:40]}  a4 {[%clk 0:00:05]} 40. Rc6 {[%clk 0:00:40]}  Qe8 {[%clk 0:00:05]} 41. Qd6+ {[%clk 0:00:38]}  Kg8 {[%clk 0:00:05]} 42. Qc5 {[%clk 0:00:38]}  Kh7 {[%clk 0:00:04]} 43. Qc2+ {[%clk 0:00:36]}  Kg8 {[%clk 0:00:02]} 44. Rc8 {[%clk 0:00:37]}  Rf8 {[%clk 0:00:03]} 45. Rxe8 {[%clk 0:00:36]}  Rxe8 {[%clk 0:00:04]} 46. Qxa4 {[%clk 0:00:35]}  Rxe5 {[%clk 0:00:04]} 47. Qa8+ {[%clk 0:00:35]}  Kh7 {[%clk 0:00:04]} 48. Qc6 {[%clk 0:00:35]}  Kg8 {[%clk 0:00:04]} 49. Qd7 {[%clk 0:00:34]}  Kh7 {[%clk 0:00:05]} 50. Qd8 {[%clk 0:00:32]}  Kg6 {[%clk 0:00:03]} 51. f4 {[%clk 0:00:30]}  gxf4 {[%clk 0:00:03]} 52. gxf4 {[%clk 0:00:31]}  Rh5+ {[%clk 0:00:04]} 53. Kg3 {[%clk 0:00:31]}  d4 {[%clk 0:00:05]} 54. Qe8+ {[%clk 0:00:29]} 1-0


[Site "https://www.chess.com"]

[Event "Titled Tuesday Blitz April 11 Late 2023"]
[White "Cori T., Deysi"]
[Black "Senthilkumar, Pranav"]
[WhiteFideId "3801934"]
[BlackFideId "2083477"]
[WhiteElo "2292"]
[BlackElo "1860"]
[Result "1-0"]
[Round "04"]
[TimeControl "180+2"]
[Date "2023.04.11"]
[WhiteClock "0:00:34"]
[BlackClock "0:00:06"]

1. Nf3 {[%clk 0:02:55]}  Nf6 {[%clk 0:02:59]} 2. c4 {[%clk 0:02:55]}  e6 {[%clk 0:02:56]} 3. g3 {[%clk 0:02:54]}  d5 {[%clk 0:02:56]} 4. Bg2 {[%clk 0:02:55]}  Be7 {[%clk 0:02:55]} 5. O-O {[%clk 0:02:55]}  O-O {[%clk 0:02:55]} 6. b3 {[%clk 0:02:55]}  c5 {[%clk 0:02:52]} 7. cxd5 {[%clk 0:02:54]}  exd5 {[%clk 0:02:52]} 8. d4 {[%clk 0:02:55]}  Nc6 {[%clk 0:02:51]} 9. Bb2 {[%clk 0:02:55]}  b6 {[%clk 0:02:49]} 10. Nc3 {[%clk 0:02:55]}  Bb7 {[%clk 0:02:48]} 11. Rc1 {[%clk 0:02:55]}  Rc8 {[%clk 0:02:47]} 12. dxc5 {[%clk 0:02:54]}  bxc5 {[%clk 0:02:48]} 13. Na4 {[%clk 0:02:55]}  Na5 {[%clk 0:02:38]} 14. Bh3 {[%clk 0:02:41]}  Rc6 {[%clk 0:02:29]} 15. Ne5 {[%clk 0:02:38]}  Rc7 {[%clk 0:02:20]} 16. Qd2 {[%clk 0:02:37]}  Nc6 {[%clk 0:02:07]} 17. Nd3 {[%clk 0:02:28]}  c4 {[%clk 0:02:04]} 18. Nf4 {[%clk 0:02:18]}  cxb3 {[%clk 0:01:56]} 19. axb3 {[%clk 0:02:17]}  d4 {[%clk 0:01:52]} 20. Bg2 {[%clk 0:02:14]}  Re8 {[%clk 0:01:15]} 21. Nc5 {[%clk 0:02:04]}  Bxc5 {[%clk 0:01:12]} 22. Rxc5 {[%clk 0:02:05]}  Ne4 {[%clk 0:01:02]} 23. Bxe4 {[%clk 0:02:04]}  Rxe4 {[%clk 0:01:03]} 24. Rfc1 {[%clk 0:02:04]}  Re8 {[%clk 0:00:38]} 25. h4 {[%clk 0:01:21]}  a6 {[%clk 0:00:37]} 26. Rg5 {[%clk 0:00:56]}  h6 {[%clk 0:00:33]} 27. Rgc5 {[%clk 0:00:56]}  Qd6 {[%clk 0:00:25]} 28. Ba3 {[%clk 0:00:53]}  Qd7 {[%clk 0:00:21]} 29. Rd5 {[%clk 0:00:50]}  Qc8 {[%clk 0:00:21]} 30. Rdc5 {[%clk 0:00:40]}  Qd7 {[%clk 0:00:20]} 31. Nd5 {[%clk 0:00:39]}  Rcc8 {[%clk 0:00:20]} 32. Qf4 {[%clk 0:00:35]}  Ne7 {[%clk 0:00:09]} 33. Nxe7+ {[%clk 0:00:34]}  Rxe7 {[%clk 0:00:05]} 34. Rxc8+ {[%clk 0:00:34]}  Bxc8 {[%clk 0:00:05]} 35. Bxe7 {[%clk 0:00:34]}  Qxe7 {[%clk 0:00:06]} 1-0


[Site "https://www.chess.com"]